[Event "1000GM Winter GM Norm-2 2024"]
[Site "Sunnyvale/"]
[Date "2024.01.06"]
[Round "7.7"]
[White "Liu, Eric"]
[Black "Lou, Yiping"]
[Result "0-1"]
[ECO "C11"]
[WhiteElo "2332"]
[BlackElo "2447"]
[Annotator "RC"]
[PlyCount "124"]
[EventDate "2023.12.14"]
[EventType "schev"]
[EventCountry "USA"]
[SourceTitle "playchess.com"]
[Source "ChessBase"]
[SourceQuality "1"]
[TimeControl "5400+30"]

1. e4 {[%emt 0:00:01]} e6 {[%emt 0:00:08]} 2. d4 {[%emt 0:00:06]} d5 {[%emt 0:00:07]} 3. Nc3 {[%emt 0:00:06]} Nf6 {[%emt 0:00:45]} 4. e5 {[%emt 0:00:06]} Nfd7 {[%emt 0:00:04]} 5. f4 {[%emt 0:00:08]} c5 {[%emt 0:00:05]} 6. Nf3 {[%emt 0:00:10]} Nc6 {[%emt 0:00:04]} 7. Be3 {[%emt 0:00:26]} cxd4 {[%emt 0:00:14]} 8. Nxd4 {[%emt 0:18:48]} Qb6 {[%emt 0:00:24]} 9. a3 {[%emt 0:00:53]} Bc5 10. Na4 {[%emt 1:14:46]} Qa5+ {[%emt 0:00:45]} 11. c3 {[%emt 0:00:00]} Bxd4 {[%emt 0:03:09]} 12. Bxd4 {[%emt 0:00:00]} Nxd4 {[%emt 0:00:06]} 13. Qxd4 {[%emt 0:00:00]} b6 {[%emt 0:00:25]} 14. Qb4 {[%emt 0:00:00]} Qxb4 {[%emt 0:03:34]} 15. axb4 {[%emt 0:00:00]} Ke7 {[%emt 0:00:15]} 16. b3 {[%emt 0:00:00]} Bb7 {[%emt 0:03:25]} 17. Bb5 {[%emt 0:00:00]} Rhc8 {[%emt 0:02:12]} 18. Kf2 {[%emt 0:00:00]} Bc6 {[%emt 0:02:02]} 19. Ba6 {[%emt 0:00:00]} Rc7 {[%emt 0:00:34]} 20. b5 {[%emt 0:00:00]} Bb7 {[%emt 0:00:05]} 21. Bxb7 {[%emt 0:00:00]} Rxb7 {[%emt 0:00:03]} 22. c4 {[%emt 0:00:00]} dxc4 {[%emt 0:07:33]} 23. bxc4 {[%emt 0:00:00]} a5 {[%emt 0:00:14]} 24. bxa6 {[%emt 0:00:00]} Rxa6 {[%emt 0:00:09]} 25. Nc3 {[%emt 0:00:00]} Rxa1 {[%emt 0:04:44]} 26. Rxa1 {[%emt 0:00:00]} Rc7 {[%emt 0:00:06]} 27. Ra4 {[%emt 0:00:00]} Nc5 {[%emt 0:00:22]} 28. Ra2 {[%emt 0:00:00]} g5 {[%emt 0:13:47]} 29. Nb5 {[%emt 0:00:00]} Ne4+ {[%emt 0:05:20]} 30. Ke3 {[%emt 0:01:52]} Rxc4 {[%emt 0:00:30]} 31. Kd3 {[%emt 0:00:00]} Rb4 {[%emt 0:00:30]} 32. Nd4 {[%emt 0:00:00]} Nc5+ {[%emt 0:00:30]} 33. Kc3 {[%emt 0:00:00]} Ra4 {[%emt 0:00:30]} 34. Rxa4 {[%emt 0:00:00]} Nxa4+ {[%emt 0:00:30]} 35. Kb4 {[%emt 0:00:00]} Nc5 {[%emt 0:00:30]} 36. fxg5 {[%emt 0:00:00]} Nd3+ {[%emt 0:00:30]} 37. Kb5 {[%emt 0:00:00]} Nxe5 {[%emt 0:00:30]} 38. Kxb6 {[%emt 0:00:26]} Kd6 {[%emt 0:00:30]} 39. Ne2 {[%emt 0:00:30]} Ng4 {[%emt 0:00:30]} 40. h4 {[%emt 0:00:30]} Ne3 {[%emt 0:00:30]} 41. g3 {[%emt 0:07:46]} e5 {[%emt 0:54:49]} 42. Kb7 {[%emt 0:04:56]} Nf5 {[%emt 0:00:00]} 43. Kc8 {[%emt 0:00:00]} Ke7 {[%emt 0:00:00]} 44. Kc7 {[%emt 0:00:00]} Ke6 {[%emt 0:01:30]} 45. Kd8 {[%emt 0:00:00]} f6 {[%emt 0:00:00]} 46. gxf6 {[%emt 0:00:34]} Kxf6 {[%emt 0:00:00]} 47. Kd7 {[%emt 0:01:12]} h5 {[%emt 0:00:00]} 48. Ke8 {[%emt 0:00:21]} e4 {[%emt 0:00:00]} 49. Kf8 {[%emt 0:00:06]} Ne7 {[%emt 0:00:00]} 50. Ke8 {[%emt 0:00:55]} Ng6 {[%emt 0:00:00]} 51. Nc3 {[%emt 0:01:22]} Kf5 {[%emt 0:00:00]} 52. Kf7 {[%emt 0:00:00]} e3 {[%emt 0:00:00]} 53. Kg7 {[%emt 0:00:27]} Ne7 {[%emt 0:00:00]} 54. Kf7 {[%emt 0:00:17]} Nc6 {[%emt 0:05:00]} 55. Ne2 {[%emt 0:00:26]} Kg4 {[%emt 0:00:00]} 56. Kg6 {[%emt 0:00:30]} Ne7+ {[%emt 0:00:00]} 57. Kf6 {[%emt 0:00:30]} Nf5 {[%emt 0:00:00]} 58. Nc1 {[%emt 0:00:30]} Nd4 {[%emt 0:00:00]} 59. Nd3 {[%emt 0:00:30]} e2 {[%emt 0:00:00]} 60. Kg6 {[%emt 0:00:30]} Nf3 {[%emt 0:00:00]} 61. Nf2+ {[%emt 0:00:30]} Kxg3 {[%emt 0:00:00]} 62. Ne4+ {[%emt 0:00:30]} Kxh4 {[%emt 0:00:00]} 0-1

[Event "1000GM Winter GM Norm-2 2024"]
[Site "Sunnyvale/"]
[Date "2024.01.06"]
[Round "7.8"]
[White "Sathish, Pranav"]
[Black "Mosquera, Miguel"]
[Result "1/2-1/2"]
[ECO "A12"]
[WhiteElo "2357"]
[BlackElo "2365"]
[Annotator "RC"]
[PlyCount "61"]
[EventDate "2023.12.14"]
[EventType "schev"]
[EventCountry "USA"]
[SourceTitle "playchess.com"]
[Source "ChessBase"]
[SourceQuality "1"]
[TimeControl "5400+30"]

1. Nf3 {[%emt 0:00:01]} Nf6 {[%emt 0:03:43]} 2. b3 {[%emt 0:00:18]} d5 {[%emt 0:00:21]} 3. Bb2 {[%emt 0:00:23]} Bf5 {[%emt 0:00:18]} 4. g3 {[%emt 0:00:30]} h6 {[%emt 0:00:24]} 5. Bg2 {[%emt 0:00:07]} e6 {[%emt 0:00:09]} 6. O-O {[%emt 0:00:16]} Be7 {[%emt 0:03:45]} 7. d3 {[%emt 0:00:08]} O-O {[%emt 0:00:59]} 8. c4 {[%emt 0:00:19]} c6 {[%emt 0:00:12]} 9. Nbd2 {[%emt 0:00:10]} Nbd7 {[%emt 0:00:29]} 10. Qc2 {[%emt 0:00:38]} Bh7 {[%emt 0:02:03]} 11. a3 {[%emt 0:00:55]} a5 {[%emt 0:00:56]} 12. Ne5 {[%emt 0:00:27]} Nxe5 {[%emt 0:06:23]} 13. Bxe5 {[%emt 0:01:06]} Qb6 {[%emt 0:00:33]} 14. Qb2 {[%emt 0:07:47]} Rfd8 {[%emt 0:02:36]} 15. Nf3 {[%emt 0:01:25]} c5 {[%emt 0:12:50]} 16. cxd5 {[%emt 0:15:55]} exd5 {[%emt 0:00:25]} 17. Nd2 {[%emt 0:02:57]} Qe6 {[%emt 0:09:24]} 18. d4 {[%emt 0:17:53]} Ng4 {[%emt 0:20:23]} 19. Bh3 {[%emt 0:07:51]} Qg6 {[%emt 0:00:54]} 20. Bxg4 {[%emt 0:01:11]} Qxg4 {[%emt 0:00:12]} 21. Rfe1 {[%emt 0:09:10]} Rac8 {[%emt 0:01:26]} 22. Nf3 {[%emt 0:01:26]} Be4 {[%emt 0:07:37]} 23. Nd2 {[%emt 0:01:16]} Bh7 {[%emt 0:09:06]} 24. Nf3 {[%emt 0:00:46]} cxd4 {[%emt 0:00:41]} 25. Nxd4 {[%emt 0:02:29]} Bc5 {[%emt 0:02:35]} 26. Rac1 {[%emt 0:05:49]} f6 {[%emt 0:05:27]} 27. Bf4 {[%emt 0:00:18]} Bxd4 {[%emt 0:00:38]} 28. Qxd4 {[%emt 0:00:03]} Rxc1 {[%emt 0:00:10]} 29. Rxc1 {[%emt 0:00:12]} Qxe2 {[%emt 0:00:18]} 30. Qe3 {[%emt 0:02:40]} Qxe3 31. fxe3 {[%emt 0:00:30]} 1/2-1/2

[Event "1000GM Winter GM Norm-2 2024"]
[Site "Sunnyvale/"]
[Date "2024.01.06"]
[Round "7.9"]
[White "Nathan, Nitish"]
[Black "Nagy, Gabor"]
[Result "0-1"]
[ECO "A48"]
[WhiteElo "2190"]
[BlackElo "2450"]
[Annotator "RC"]
[PlyCount "94"]
[EventDate "2023.12.14"]
[EventType "schev"]
[EventCountry "USA"]
[SourceTitle "playchess.com"]
[Source "ChessBase"]
[SourceQuality "1"]
[TimeControl "5400+30"]

1. d4 {[%emt 0:00:02]} Nf6 {[%emt 0:02:21]} 2. Bf4 {[%emt 0:00:07]} d6 {[%emt 0:00:23]} 3. e3 {[%emt 0:00:07]} g6 {[%emt 0:00:33]} 4. Nf3 {[%emt 0:00:06]} Bg7 {[%emt 0:00:14]} 5. h3 {[%emt 0:00:19]} O-O {[%emt 0:00:16]} 6. Be2 {[%emt 0:00:14]} c5 {[%emt 0:00:23]} 7. O-O {[%emt 0:02:05]} Qb6 {[%emt 0:01:11]} 8. Nbd2 {[%emt 0:01:46]} cxd4 {[%emt 0:01:36]} 9. exd4 {[%emt 0:03:19]} Be6 {[%emt 0:01:20]} 10. Qc1 {[%emt 0:02:12]} Rc8 {[%emt 0:00:48]} 11. c3 {[%emt 0:03:05]} Nc6 {[%emt 0:01:43]} 12. Bh2 {[%emt 0:06:36]} Bh6 {[%emt 0:03:32]} 13. Qb1 {[%emt 0:04:44]} Rab8 {[%emt 0:08:00]} 14. Bd3 {[%emt 0:04:21]} Qd8 {[%emt 0:02:29]} 15. Ne4 {[%emt 0:05:12]} Nxe4 {[%emt 0:01:58]} 16. Bxe4 {[%emt 0:00:10]} Na5 {[%emt 0:00:27]} 17. Re1 {[%emt 0:03:52]} Bd7 {[%emt 0:00:45]} 18. Bd3 {[%emt 0:08:11]} b5 {[%emt 0:01:02]} 19. a3 {[%emt 0:07:57]} Nb3 {[%emt 0:05:55]} 20. Ra2 {[%emt 0:46:05]} a5 {[%emt 1:05:34]} 21. Bc2 {[%emt 0:00:00]} Nd2 {[%emt 0:00:00]} 22. Nxd2 {[%emt 0:00:00]} Bxd2 {[%emt 0:00:00]} 23. Rd1 {[%emt 0:00:00]} Bg5 {[%emt 0:00:00]} 24. Be4 {[%emt 0:00:00]} b4 {[%emt 0:00:00]} 25. axb4 {[%emt 0:00:00]} axb4 {[%emt 0:00:00]} 26. Qa1 {[%emt 0:00:00]} Be6 {[%emt 0:00:00]} 27. Ra5 {[%emt 0:00:00]} Bh6 {[%emt 0:00:00]} 28. Bc2 {[%emt 0:00:00]} Rc7 {[%emt 0:00:00]} 29. Bd3 {[%emt 0:00:00]} Bb3 {[%emt 0:00:00]} 30. Rb1 {[%emt 0:00:00]} bxc3 {[%emt 0:00:00]} 31. bxc3 {[%emt 0:00:00]} Bd2 {[%emt 0:00:00]} 32. Ra7 {[%emt 0:00:00]} Bxc3 {[%emt 0:00:00]} 33. Qa3 {[%emt 0:00:00]} Rxa7 {[%emt 0:00:00]} 34. Qxa7 {[%emt 0:00:00]} Ra8 {[%emt 0:00:00]} 35. Qb7 {[%emt 0:00:00]} Ba2 {[%emt 0:00:00]} 36. Rd1 {[%emt 0:00:00]} Bxd4 {[%emt 0:00:00]} 37. Be4 {[%emt 0:00:00]} Ra7 {[%emt 0:00:00]} 38. Qb4 {[%emt 0:00:00]} Bf6 {[%emt 0:00:00]} 39. Bf4 {[%emt 0:00:00]} Be6 {[%emt 0:00:00]} 40. Kh2 {[%emt 0:00:00]} Rc7 {[%emt 0:00:00]} 41. Qa5 {[%emt 0:00:00]} Rc8 {[%emt 0:00:00]} 42. Qe1 {[%emt 0:00:39]} Qb6 {[%emt 0:00:00]} 43. Bf3 {[%emt 0:00:28]} Rc2 {[%emt 0:00:00]} 44. Be3 {[%emt 0:00:43]} Qc7 {[%emt 0:00:00]} 45. Kg1 {[%emt 0:00:17]} Bc3 {[%emt 0:00:00]} 46. Bd2 {[%emt 0:00:33]} Rxd2 {[%emt 0:00:00]} 47. Rxd2 {[%emt 0:00:14]} Qa5 {[%emt 0:00:00]} 0-1

[Event "1000GM Winter GM Norm-2 2024"]
[Site "Sunnyvale/"]
[Date "2024.01.06"]
[Round "8.1"]
[White "Figueredo Losada, Leonel"]
[Black "Rajaram, Rohan"]
[Result "1-0"]
[ECO "A11"]
[WhiteElo "2381"]
[BlackElo "2151"]
[Annotator "RC"]
[PlyCount "111"]
[EventDate "2023.12.14"]
[EventType "schev"]
[EventCountry "USA"]
[SourceTitle "playchess.com"]
[Source "ChessBase"]
[SourceQuality "1"]
[TimeControl "5400+30"]

1. Nf3 {[%emt 1:31:00]} d5 {[%emt 0:00:42]} 2. g3 {[%emt 0:00:00]} g6 {[%emt 0:00:05]} 3. c4 {[%emt 0:00:00]} c6 {[%emt 0:00:34]} 4. Qa4 {[%emt 0:00:00]} dxc4 {[%emt 0:00:54]} 5. Qxc4 {[%emt 0:00:00]} Bg7 {[%emt 0:00:09]} 6. Bg2 {[%emt 0:00:00]} Nf6 {[%emt 0:00:25]} 7. O-O {[%emt 0:00:00]} O-O {[%emt 0:00:04]} 8. d3 {[%emt 0:00:00]} Nbd7 {[%emt 0:01:00]} 9. Qc2 {[%emt 0:00:00]} Re8 {[%emt 0:04:07]} 10. Nbd2 {[%emt 0:00:00]} Nb6 {[%emt 0:04:49]} 11. e4 {[%emt 0:00:00]} e5 {[%emt 0:02:51]} 12. b3 {[%emt 0:00:00]} Qc7 {[%emt 0:01:24]} 13. Bb2 {[%emt 0:00:00]} Bg4 {[%emt 0:03:44]} 14. h3 {[%emt 0:00:00]} Bxf3 {[%emt 0:01:11]} 15. Nxf3 {[%emt 0:00:00]} Rad8 {[%emt 0:00:14]} 16. Rfd1 {[%emt 0:00:00]} Nfd7 {[%emt 0:04:07]} 17. b4 {[%emt 0:00:00]} Nf8 {[%emt 0:08:06]} 18. a4 {[%emt 0:00:00]} Ne6 {[%emt 1:05:04]} 19. Rac1 {[%emt 0:09:00]} Rc8 {[%emt 0:00:30]} 20. Qb3 {[%emt 0:00:30]} Qd6 {[%emt 0:00:30]} 21. h4 {[%emt 0:00:30]} Nd7 {[%emt 0:00:00]} 22. Bh3 Rcd8 {[%emt 0:01:00]} 23. Rc2 {[%emt 0:01:00]} Bf8 {[%emt 0:00:30]} 24. Bc3 {[%emt 0:00:30]} c5 {[%emt 0:00:00]} 25. b5 {[%emt 0:00:00]} Nd4 {[%emt 0:00:00]} 26. Bxd4 {[%emt 0:00:00]} exd4 {[%emt 0:00:00]} 27. Ng5 {[%emt 0:00:00]} Re7 {[%emt 0:00:00]} 28. f4 {[%emt 0:00:00]} h6 {[%emt 0:00:00]} 29. e5 {[%emt 0:00:00]} Qc7 {[%emt 0:00:00]} 30. Nxf7 {[%emt 0:00:00]} Rxf7 {[%emt 0:00:00]} 31. e6 {[%emt 0:00:00]} Re7 {[%emt 0:00:00]} 32. exd7+ {[%emt 0:00:00]} Kg7 {[%emt 0:00:00]} 33. Qd5 {[%emt 0:00:00]} Qb6 {[%emt 0:00:00]} 34. Kf2 {[%emt 0:00:00]} Re3 {[%emt 0:00:00]} 35. Re2 {[%emt 0:00:00]} Rxe2+ {[%emt 0:00:00]} 36. Kxe2 {[%emt 0:00:00]} Qc7 {[%emt 0:00:00]} 37. Kf3 {[%emt 0:00:00]} b6 {[%emt 0:00:00]} 38. Re1 {[%emt 0:00:00]} Qd6 {[%emt 0:00:00]} 39. Qc6 {[%emt 0:00:00]} Qxc6+ {[%emt 0:00:00]} 40. bxc6 {[%emt 0:00:00]} Bd6 {[%emt 0:00:00]} 41. Ke4 {[%emt 0:00:00]} Bc7 {[%emt 0:00:00]} 42. Kd5 {[%emt 0:00:00]} Kf7 {[%emt 0:00:00]} 43. Re6 {[%emt 0:00:00]} g5 {[%emt 0:00:00]} 44. fxg5 {[%emt 0:00:00]} hxg5 {[%emt 0:00:00]} 45. hxg5 {[%emt 0:00:00]} Rg8 {[%emt 0:00:00]} 46. g6+ {[%emt 0:00:00]} Rxg6 {[%emt 0:00:00]} 47. Rxg6 {[%emt 0:00:00]} Kxg6 {[%emt 0:00:00]} 48. Ke6 {[%emt 0:00:00]} c4 {[%emt 0:00:00]} 49. dxc4 {[%emt 0:00:00]} Kg7 {[%emt 0:00:00]} 50. Ke7 {[%emt 0:00:00]} d3 {[%emt 0:00:00]} 51. d8=Q {[%emt 0:00:00]} Bxd8+ {[%emt 0:00:00]} 52. Kxd8 {[%emt 0:00:00]} d2 {[%emt 0:00:00]} 53. Bg4 {[%emt 0:00:00]} Kf6 {[%emt 0:00:00]} 54. c7 {[%emt 0:00:00]} Kg5 {[%emt 0:00:00]} 55. Bd1 {[%emt 0:00:00]} Kf6 {[%emt 0:00:00]} 56. c8=Q {[%emt 0:00:00]} 1-0

[Event "1000GM Winter GM Norm-2 2024"]
[Site "Sunnyvale/"]
[Date "2024.01.06"]
[Round "8.3"]
[White "Wang, Isaac"]
[Black "Galyas, Miklos"]
[Result "1/2-1/2"]
[ECO "D37"]
[WhiteElo "2316"]
[BlackElo "2423"]
[Annotator "RC"]
[PlyCount "57"]
[EventDate "2023.12.14"]
[EventType "schev"]
[EventCountry "USA"]
[SourceTitle "playchess.com"]
[Source "ChessBase"]
[SourceQuality "1"]
[TimeControl "5400+30"]

1. d4 {[%emt 0:03:52]} d5 {[%emt 0:00:08]} 2. c4 {[%emt 0:00:03]} e6 {[%emt 0:00:07]} 3. Nc3 {[%emt 0:00:03]} h6 {[%emt 0:00:10]} 4. Nf3 {[%emt 0:00:18]} Nf6 {[%emt 0:00:08]} 5. g3 {[%emt 0:00:18]} Nc6 {[%emt 0:00:11]} 6. Bg2 {[%emt 0:01:59]} Bd6 {[%emt 0:00:21]} 7. O-O {[%emt 0:00:45]} O-O {[%emt 0:00:06]} 8. b3 {[%emt 0:00:39]} Re8 {[%emt 0:00:23]} 9. Bb2 {[%emt 0:00:23]} dxc4 {[%emt 0:03:06]} 10. bxc4 {[%emt 0:00:11]} e5 {[%emt 0:00:04]} 11. d5 {[%emt 0:05:02]} Na5 {[%emt 0:00:25]} 12. Nd2 {[%emt 0:00:51]} b6 {[%emt 0:01:07]} 13. Rc1 {[%emt 0:03:27]} Ba6 {[%emt 0:08:06]} 14. Qa4 {[%emt 0:03:38]} Qd7 {[%emt 0:04:45]} 15. Rfd1 {[%emt 0:08:26]} Qxa4 {[%emt 0:07:23]} 16. Nxa4 {[%emt 0:00:09]} Nd7 {[%emt 0:03:51]} 17. e3 {[%emt 0:06:43]} Rad8 {[%emt 0:02:36]} 18. Bf1 {[%emt 0:03:34]} Nb7 {[%emt 0:01:07]} 19. Ne4 {[%emt 0:06:07]} Nbc5 {[%emt 0:01:16]} 20. Nac3 {[%emt 0:02:57]} Nxe4 {[%emt 0:02:49]} 21. Nxe4 {[%emt 0:00:03]} Nc5 {[%emt 0:01:12]} 22. Nxd6 {[%emt 0:01:48]} cxd6 {[%emt 0:00:11]} 23. f3 {[%emt 0:01:02]} Rc8 {[%emt 0:00:42]} 24. e4 {[%emt 0:01:48]} Rc7 {[%emt 0:00:08]} 25. Kf2 {[%emt 0:01:52]} Bc8 {[%emt 0:00:11]} 26. Ke3 {[%emt 0:01:09]} f5 {[%emt 0:02:16]} 27. Be2 {[%emt 0:00:32]} fxe4 {[%emt 0:05:44]} 28. fxe4 {[%emt 0:00:02]} Rf8 {[%emt 0:00:34]} 29. Rf1 {[%emt 0:47:19]} 1/2-1/2

[Event "1000GM Winter GM Norm-2 2024"]
[Site "Sunnyvale/"]
[Date "2024.01.06"]
[Round "8.4"]
[White "Amburgy, Ryan"]
[Black "Xu, Yi"]
[Result "1/2-1/2"]
[ECO "E06"]
[WhiteElo "2200"]
[BlackElo "2511"]
[Annotator "TA"]
[PlyCount "41"]
[EventDate "2023.12.14"]
[EventType "schev"]
[EventCountry "USA"]
[SourceTitle "playchess.com"]
[Source "ChessBase"]
[SourceQuality "1"]
[TimeControl "5400+30"]

{[%evp 15,41,11,13,19,16,0,22,17,17,20,12,7,6,10,14,0,0,0,0,0,4,0,0,0,0,0,0,-2]} 1. Nf3 {[%emt 0:00:02]} Nf6 {[%emt 0:01:26]} 2. g3 {[%emt 0:00:05]} d5 {[%emt 0:00:07][%cal Bd7d5,Bd5c4][%mdl 32]} 3. Bg2 {[%emt 0:00:05]} e6 {[%emt 0:00:05]} 4. c4 {[%emt 0:00:08]} Be7 {[%emt 0:00:09]} 5. d4 {[%emt 0:00:07]} O-O {[%emt 0:00:11]} 6. Nc3 {[%emt 0:00:06][%cal Bb1c3,Bc3d1,Bd1e3,Be3c4,Bc4e5][%mdl 32]} dxc4 {[%emt 0:01:09]} 7. Ne5 {[%emt 0:00:06]} c5 {[%emt 0:00:41]} 8. dxc5 {[%emt 0:00:06]} Qxd1+ {[%emt 0:00:33] The position is equal.} 9. Nxd1 {[%emt 0:00:06] E06: Closed Catalan: Early deviations.} Bxc5 {[%emt 0:00:29][%cal Ob8c6]} 10. Ne3 {[%emt 0:00:29]} Nbd7 {[%emt 0:03:48]} 11. N3xc4 {[%emt 0:00:32]} Nxe5 {[%emt 0:06:33]} 12. Nxe5 {[%emt 0:00:06]} Bd4 {[%emt 0:05:03]} 13. Nd3 {[%emt 0:01:35]} Nd5 {[%emt 0:04:29] [#]} 14. O-O $146 {[%emt 0:02:01]} ({Predecessor:} 14. e3 Bb6 15. Bd2 Rd8 16. Ke2 Bd7 17. a4 Bc6 18. Rhc1 Rac8 19. e4 Nf6 20. f3 {1-0 Bocharov,D (2521)-Nozdrachev,V (2507) Cheliabinsk Kurnosov Memorial Rapid-A 2022 (8)}) 14... b6 {[%emt 0:14:09]} 15. Nf4 {[%emt 0:05:28]} Bb7 {[%emt 0:01:15]} 16. Nxd5 {[%emt 0:00:16]} Bxd5 {[%emt 0:02:04]} 17. Bxd5 {[%emt 0:00:06]} exd5 {[%emt 0:00:03]} 18. Rd1 {[%emt 0:00:08]} Bf6 {[%emt 0:00:08]} 19. Rxd5 {[%emt 0:01:27]} Rfd8 {[%emt 0:01:20]} 20. Rxd8+ {[%emt 0:00:04]} Rxd8 {[%emt 0:00:05]} 21. Be3 {[%emt 0:00:02] Not much happened in this game.   Weighted Error Value: White=0.04 (flawless) /Black=0.03 (flawless)} 1/2-1/2

[Event "1000GM Winter GM Norm-2 2024"]
[Site "Sunnyvale/"]
[Date "2024.01.06"]
[Round "8.5"]
[White "Guo, Andrew"]
[Black "Delgado Ramirez, Neuris"]
[Result "0-1"]
[ECO "E08"]
[WhiteElo "2255"]
[BlackElo "2517"]
[Annotator "TA"]
[PlyCount "76"]
[EventDate "2023.12.14"]
[EventType "schev"]
[EventCountry "USA"]
[SourceTitle "playchess.com"]
[Source "ChessBase"]
[SourceQuality "1"]
[TimeControl "5400+30"]

{[%evp 17,76,33,27,25,30,0,4,0,25,22,56,-10,-21,-68,-54,-75,-77,-81,-57,-65,-51,-80,-68,-97,-102,-97,-105,-92,-95,-157,-97,-168,-141,-173,-197,-109,-11,-11,-8,-22,-4,-269,-75,-72,-59,-263,-270,-416,-410,-389,-382,-382,-375,-355,-343,-29991,-29992,-29992,-29993,-29993,-29994]} 1. d4 {[%emt 0:00:01]} Nf6 {[%emt 0:16:35]} 2. c4 {[%emt 0:00:34]} e6 {[%emt 0:00:09]} 3. Nf3 {[%emt 0:00:06]} d5 {[%emt 0:00:05]} 4. g3 {[%emt 0:00:04]} Bb4+ {[%emt 0:00:05]} 5. Bd2 {[%emt 0:00:03]} Be7 {[%emt 0:00:04]} 6. Bg2 {[%emt 0:00:25]} O-O {[%emt 0:00:06]} 7. O-O {[%emt 0:00:10]} c6 {[%emt 0:00:04]} 8. Qc2 {[%emt 0:00:14]} a5 {[%emt 0:00:06]} 9. Bf4 {[%emt 0:02:02]} Nbd7 {[%emt 0:01:43]} 10. Rd1 {[%emt 0:01:20] E08: Closed Catalan: Main Line: 7 Qc2.} Nh5 {[%emt 0:03:52]} 11. Bd2 {[%emt 0:07:38]} Nhf6 {[%emt 0:01:34]} 12. Bf4 {[%emt 0:04:07] The position is equal. The old main line.} a4 {[%emt 0:01:04]} 13. Ne5 {[%emt 0:03:53]} Nxe5 {[%emt 0:06:11]} 14. Bxe5 {[%emt 0:05:05]} (14. dxe5 $14 Ng4 15. h3) 14... Nh5 $11 {[%emt 0:07:46]} 15. Nd2 {[%emt 0:14:52]} (15. g4 $11 f6 16. Bg3 Nxg3 17. hxg3) 15... f6 $15 {[%emt 0:02:14]} 16. Bf4 {[%emt 0:00:02]} Nxf4 {[%emt 0:02:18]} 17. gxf4 {[%emt 0:00:01] [#]} Bd7 $146 {[%emt 0:00:11]} ({Predecessor:} 17... Qd6 18. b3 Bd7 19. Rac1 g6 20. Nf3 h5 21. cxd5 cxd5 22. Qc7 Rfc8 23. Qxd6 Bxd6 {½-½ Djokic,N (2246)-Atalik,S (2441) Belgrade Radnicki IM 03 2023 (2)}) 18. e3 {[%emt 0:05:17]} Kh8 {[%emt 0:00:24]} 19. Rac1 {[%emt 0:00:23]} Bd6 {[%emt 0:00:31]} 20. f5 {[%emt 0:04:16]} Qe8 {[%emt 0:01:32]} (20... exf5 $6 21. cxd5 cxd5 22. Bxd5 $11) 21. fxe6 {[%emt 0:01:45]} Bxe6 {[%emt 0:00:28]} 22. cxd5 {[%emt 0:00:08]} cxd5 {[%emt 0:00:16]} 23. Qd3 {[%emt 0:01:20]} ({White should try} 23. Re1) 23... g5 {[%emt 0:00:52]} (23... Qh5 $142 {Strongly threatening ...Bf5.} 24. Nf1 f5) 24. b3 {[%emt 0:03:16]} (24. Qe2 $17) 24... f5 {[%emt 0:01:17][%cal Bf6f5,Bf5f4][%mdl 32]} 25. Nf3 {[%emt 0:00:34]} f4 {[%emt 0:04:15]} 26. Ne5 {[%emt 0:08:26]} Bxe5 {[%emt 0:12:04]} (26... Qh5 $17 {White must now prevent ...f3.} 27. e4 Bxe5 28. dxe5 f3 29. exd5 Qg4 {[%mdl 64] Pin}) 27. dxe5 $11 {[%emt 0:00:05]} f3 {[%emt 0:00:07]} 28. Bf1 {[%emt 0:00:10]} Qh5 {[%emt 0:00:30] And now ...Rg8 would win.} 29. Qd4 $2 {[%emt 0:01:29][%mdl 8192]} (29. Qb5 $11) 29... axb3 $2 {[%emt 0:00:26]} (29... Rg8 $1 $19 {has better winning chances. ...axb3 would be deadly.} 30. Rc5 (30. bxa4 Rg6 $19) 30... axb3 31. axb3 Rae8) 30. axb3 $17 {[%emt 0:00:03]} Rg8 $1 {[%emt 0:02:59][%cal Bf8g8,Bg8g6,Bg6h6][%mdl 32] Threatens to win with ...Rg6. Black is more active.} 31. Rc7 $2 {[%emt 0:14:13] [#]} (31. Ra1 $1 $15) 31... Rg6 $1 $19 {[%emt 0:00:39] aiming for ...Rh6.} 32. e4 {[%emt 0:04:36]} ({Much weaker is} 32. Rxb7 Rh6 33. h3 g4 $19) (32. Rd7 $142 g4 33. Rxd5 Bxd5 34. e6+ Kg8 35. Qxd5 Qxd5 36. Rxd5) 32... Rh6 {[%emt 0:12:28][%csl Gh6][%cal Rh5h2]} 33. h3 {[%emt 0:00:19]} (33. exd5 $2 Qxh2#) 33... g4 {[%emt 0:00:03][%cal Bg5g4,Bg4h3,Bh3h2][%mdl 32]} 34. exd5 {[%emt 0:00:31]} gxh3 {[%emt 0:00:09]} 35. Kh2 {[%emt 0:01:06]} (35. dxe6 {leads to mate.} Qg5+) 35... Rg8 $1 {[%emt 0:00:20][%cal Oh5g5] ( -> ...Qg5!)} 36. Qf4 {[%emt 0:06:56] [#]} (36. dxe6 {is a self mate.} Qg5) (36. Rc8 $19 Rxc8 37. dxe6 Rxe6 38. Qf4) 36... Rg2+ $1 {[%emt 0:00:14][%mdl 576] Double Attack. Black mates.} 37. Kh1 {[%emt 0:00:04] [#]} h2 $1 {[%emt 0:00:21][%csl Gh2][%cal Rg2g1]} 38. Qf8+ {[%emt 0:00:30]} Bg8 {[%emt 0:01:36] An entertaining game by Delgado Ramirez.   Weighted Error Value: White=0.64/Black=0.15 (very precise)} 0-1

[Event "1000GM Winter GM Norm-2 2024"]
[Site "Sunnyvale/"]
[Date "2024.01.06"]
[Round "8.6"]
[White "Lou, Yiping"]
[Black "Shivakumar, Shawnak"]
[Result "1/2-1/2"]
[ECO "A11"]
[WhiteElo "2447"]
[BlackElo "2307"]
[Annotator "RC"]
[PlyCount "39"]
[EventDate "2023.12.14"]
[EventType "schev"]
[EventCountry "USA"]
[SourceTitle "playchess.com"]
[Source "ChessBase"]
[SourceQuality "1"]
[TimeControl "5400+30"]

1. Nf3 {[%emt 0:00:14]} Nf6 {[%emt 0:08:31]} 2. g3 {[%emt 0:00:25]} d5 {[%emt 0:03:34]} 3. Bg2 {[%emt 0:00:12]} Bf5 {[%emt 0:01:54]} 4. O-O {[%emt 0:02:59]} e6 {[%emt 0:00:58]} 5. d3 {[%emt 0:00:36]} h6 {[%emt 0:00:16]} 6. c4 {[%emt 0:00:21]} c6 {[%emt 0:00:47]} 7. Qb3 {[%emt 0:00:15]} Qb6 {[%emt 0:01:09]} 8. Be3 {[%emt 0:03:32]} Qxb3 {[%emt 0:00:48]} 9. axb3 {[%emt 0:00:03]} a6 {[%emt 0:00:20]} 10. Bd4 {[%emt 0:01:18]} Nbd7 {[%emt 0:01:01]} 11. Bc3 {[%emt 0:00:51]} Bd6 {[%emt 0:01:57]} 12. Nbd2 {[%emt 0:03:40]} e5 {[%emt 0:07:03]} 13. cxd5 {[%emt 0:06:04]} cxd5 {[%emt 0:01:05]} 14. e4 {[%emt 0:08:17]} dxe4 {[%emt 0:01:44]} 15. Nc4 {[%emt 0:05:33]} Bc7 {[%emt 0:10:56]} 16. Nfxe5 {[%emt 0:11:53]} Nxe5 {[%emt 0:00:48]} 17. Bxe5 {[%emt 0:03:20]} Bxe5 {[%emt 0:00:45]} 18. Nxe5 {[%emt 0:00:01]} O-O {[%emt 0:00:20]} 19. dxe4 {[%emt 0:01:16]} Bxe4 {[%emt 0:00:26]} 20. Rfd1 {[%emt 0:00:22]} 1/2-1/2